[Event "Portuguese Rapid-ch 2022"]
[Site "Viseu"]
[Date "2022.06.10"]
[Round "4.6"]
[White "Padeiro, Jose"]
[Black "Gomes, Jose Luis"]
[Result "1-0"]
[ECO "B01"]
[WhiteElo "2207"]
[BlackElo "1741"]
[Annotator "TA"]
[PlyCount "43"]
[EventDate "2022.06.09"]
[EventType "rapid"]
[EventCountry "POR"]
[SourceTitle "playchess.com"]
[Source "ChessBase"]
[SourceQuality "1"]
[TimeControl "600+5"]

{[%evp 9,43,52,117,27,29,11,11,19,32,30,42,18,59,58,47,52,145,156,144,139,143,147,281,269,292,259,521,522,899,870,1329,1260,29996,29997,29997,29998]} 1. e4 {[%emt 0:00:03]} d5 {[%emt 0:00:05]} 2. exd5 {[%emt 0:00:02]} Qxd5 {[%emt 0:00:07]} 3. Nc3 {[%emt 0:00:01]} Qd8 {[%emt 0:00:13]} 4. Nf3 {[%emt 0:00:05]} Bg4 {[%emt 0:00:08]} 5. h3 {[%emt 0:00:02]} Bh5 {[%emt 0:00:05]} ({Black should play} 5... Bxf3 $14 6. Qxf3 c6) 6. Bc4 {[%emt 0:00:21] White is more active. B01: Scandinavian Defence.} ({Better is} 6. g4 $1 $16 {[%cal Rg4h5]} Bg6 7. h4) 6... Nf6 $11 {[%emt 0:01:10]} 7. d3 {[%emt 0:00:26]} e6 {[%emt 0:00:30]} 8. Qe2 {[%emt 0:00:15] [#] The position is equal.} Bd6 $146 {[%emt 0:00:42]} ({Predecessor:} 8... Nc6 9. Bb5 Bb4 10. g4 Bg6 11. Ne5 Qd5 12. Bxc6+ bxc6 13. f3 Nd7 14. Nxd7 Qxd7 {1-0 (26) Huba,M-Feher,M Slovakia 1998}) 9. Bd2 {[%emt 0:00:11]} O-O {[%emt 0:00:18]} 10. O-O-O {[%emt 0:00:03]} (10. g4 $5 {[%cal Rg4h5]} Bg6 11. Ne4 $11) 10... Nc6 {[%emt 0:00:29]} 11. g4 {[%emt 0:00:02]} Bg6 {[%emt 0:00:12]} 12. Rdg1 {[%emt 0:01:25][%cal Bd1g1,Bg1g5,Bg5h5][%mdl 32]} Na5 {[%emt 0:00:09] [#]} (12... Qe7 $14) 13. h4 $1 $36 {[%emt 0:01:17][%mdl 2048] h5 is the strong threat. White is really pushing.} Nxc4 {[%emt 0:00:22]} 14. dxc4 {[%emt 0:00:02]} h5 {[%emt 0:00:35]} 15. gxh5 {[%emt 0:00:38]} Bxh5 {[%emt 0:00:16] [#]} (15... Nxh5 $16 16. Kb1 Qe8) 16. Rg5 $1 $18 {[%emt 0:00:08] Threatens to win with Rhg1.} Re8 {[%emt 0:01:42]} 17. Rhg1 {[%emt 0:00:52]} g6 {[%emt 0:00:15]} (17... Bg6 {keeps fighting.} 18. h5 Nxh5) 18. Ne4 {[%emt 0:00:47]} Nxe4 {[%emt 0:01:31]} 19. Qxe4 {[%emt 0:00:02] Strongly threatening Rxh5.} f5 {[%emt 0:00:32]} 20. Qe3 {[%emt 0:00:15] aiming for Rxh5.} Kh7 {[%emt 0:00:34] [#]} 21. Rxh5+ $1 {[%emt 0:00:03][%mdl 512]} Kg7 {[%emt 0:00:26]} 22. Qh6+ {[%emt 0:00:11] Weighted Error Value: White=0.12 (very precise) /Black=0.94} 1-0

[Event "Portuguese Rapid-ch 2022"]
[Site "Viseu"]
[Date "2022.06.10"]
[Round "4.7"]
[White "Batista, Sandro Manuel Almeid"]
[Black "Silva, Miguel Antonio Neto"]
[Result "0-1"]
[ECO "B20"]
[WhiteElo "1682"]
[BlackElo "2215"]
[Annotator "TA"]
[PlyCount "72"]
[EventDate "2022.06.09"]
[EventType "rapid"]
[EventCountry "POR"]
[SourceTitle "playchess.com"]
[Source "ChessBase"]
[SourceQuality "1"]
[TimeControl "600+5"]

{[%evp 10,72,3,-13,0,-5,20,-29,-41,-41,-31,-30,-28,-47,-37,-41,-41,-52,-52,-46,-52,-88,-47,-58,-44,-48,-39,-78,-63,-114,-114,-124,-119,-133,-111,-94,-63,-62,-62,-68,-86,-76,-83,-120,-131,-164,-164,-217,-214,-214,-210,-289,-280,-313,-320,-320,-305,-320,-306,-366,-358,-419,-418,-655,-644]} 1. e4 {[%emt 0:00:02]} c5 {[%emt 0:00:01]} 2. Be2 {[%emt 0:00:01]} Nc6 {[%emt 0:00:05]} 3. d3 {[%emt 0:00:07]} g6 {[%emt 0:00:03]} 4. f4 {[%emt 0:00:01]} Bg7 {[%emt 0:00:02]} 5. Nf3 {[%emt 0:00:02]} d6 {[%emt 0:00:08]} 6. O-O {[%emt 0:00:02]} Nf6 {[%emt 0:00:06] B21: Sicilian: 2 f4 and Morra Gambit.} 7. Qe1 {[%emt 0:00:01]} c4 {[%emt 0:00:26] [#]} 8. Be3 $146 {[%emt 0:00:46]} (8. Nc3 $142) ({Predecessor:} 8. Kh1 O-O 9. Qh4 Nb4 10. Na3 cxd3 11. cxd3 Nc6 12. f5 gxf5 13. Bh6 Bxh6 14. Qxh6 {1-0 (31) Stevic,H (2607)-Horvath,C (2529) Sibenik 2010}) 8... Ng4 $11 {[%emt 0:00:05][%csl LRb2,LRe3] Black has an edge.} 9. Bc1 {[%emt 0:00:10]} Qb6+ {[%emt 0:00:10]} 10. Kh1 {[%emt 0:00:08]} Ne3 {[%emt 0:00:10]} 11. Bxe3 {[%emt 0:00:23]} Qxe3 {[%emt 0:00:03]} 12. Nc3 {[%emt 0:00:08] [#] Black must now prevent Nd5.} cxd3 {[%emt 0:00:52]} (12... Qxf4 $2 13. Nd5 Qh6 14. Nc7+ Kd7 15. Nxa8 $18) 13. Bxd3 {[%emt 0:00:55]} Qxe1 {[%emt 0:00:05]} 14. Raxe1 {[%emt 0:00:03]} O-O {[%emt 0:00:52][%cal Bh8f8,Bf8c8,Bc8c2][%mdl 32]} 15. Rb1 {[%emt 0:00:34]} Nb4 {[%emt 0:00:05]} 16. a3 {[%emt 0:00:05]} Nxd3 {[%emt 0:00:03]} 17. cxd3 {[%emt 0:00:02]} Be6 {[%emt 0:00:07]} 18. Ne2 {[%emt 0:00:44]} Rfc8 {[%emt 0:00:22]} 19. Nfd4 {[%emt 0:00:03]} (19. Kg1 $15) 19... Bg4 $17 {[%emt 0:00:14]} 20. h3 {[%emt 0:00:12]} Bxe2 {[%emt 0:01:05]} 21. Nxe2 {[%emt 0:00:01]} Rc2 {[%emt 0:00:01]} 22. Nc3 {[%emt 0:00:17]} Bxc3 {[%emt 0:00:04]} 23. bxc3 {[%emt 0:00:03]} Rxc3 {[%emt 0:00:04] aiming for ...b6.} 24. Rxb7 {[%emt 0:00:02][%mdl 4096] Endgame KRR-KRR} Kf8 $1 {[%emt 0:00:09]} ({But not} 24... Rxa3 25. Rxe7 Rxd3 26. f5 $11) 25. d4 {[%emt 0:00:20]} Rd3 {[%emt 0:00:08]} 26. f5 {[%emt 0:00:28]} Rxd4 {[%emt 0:00:11]} 27. fxg6 {[%emt 0:00:15]} hxg6 {[%emt 0:00:03]} 28. Re1 {[%emt 0:00:06] [#]} (28. Rf4 $142) 28... f6 $1 $19 {[%emt 0:00:09]} 29. Re3 {[%emt 0:00:22]} a5 {[%emt 0:00:08]} 30. Rg3 {[%emt 0:00:33]} Kf7 {[%emt 0:00:09]} ({Inferior is} 30... Rxe4 31. Rxg6 Rc8 32. Rg3 $19) 31. Re3 {[%emt 0:00:05]} Rc8 {[%emt 0:00:01]} 32. Ra7 {[%emt 0:00:16]} Rc5 {[%emt 0:00:07]} 33. Kg1 {[%emt 0:00:25]} Rd2 {[%emt 0:00:19]} 34. Rb3 {[%emt 0:00:18]} Re5 {[%emt 0:00:19]} 35. Re3 {[%emt 0:00:04]} Rg5 {[%emt 0:00:09]} 36. e5 {[%emt 0:00:08]} (36. g4 $142 Rc5 37. Kf1) 36... Rgxg2+ {[%emt 0:00:17] Weighted Error Value: White=0.32/Black=0.06 (flawless)} 0-1

[Event "Portuguese Rapid-ch 2022"]
[Site "Viseu"]
[Date "2022.06.10"]
[Round "4.8"]
[White "Sismeiro, Miguel"]
[Black "Farias, David Nuno M E"]
[Result "1-0"]
[ECO "A48"]
[WhiteElo "2148"]
[BlackElo "1948"]
[Annotator "TA"]
[PlyCount "55"]
[EventDate "2022.06.09"]
[EventType "rapid"]
[EventCountry "POR"]
[SourceTitle "playchess.com"]
[Source "ChessBase"]
[SourceQuality "1"]
[TimeControl "600+5"]

{[%evp 13,55,0,0,1,0,-10,33,22,38,24,44,16,72,78,75,36,410,420,413,162,156,103,420,418,451,406,419,309,390,375,406,393,473,371,394,408,582,487,706,691,680,481,1418,1378]} 1. d4 {[%emt 0:00:03]} Nf6 {[%emt 0:00:01]} 2. Nf3 {[%emt 0:00:01]} g6 {[%emt 0:00:01]} 3. Nc3 {[%emt 0:00:01]} d5 {[%emt 0:00:02]} 4. Bf4 {[%emt 0:00:02]} Bg7 {[%emt 0:00:04]} 5. e3 {[%emt 0:00:01]} O-O {[%emt 0:00:12]} 6. Be2 {[%emt 0:00:01]} c5 {[%emt 0:00:42]} 7. dxc5 {[%emt 0:00:02] is now debated instead of 7.Ne5.} Qa5 {[%emt 0:00:04]} 8. O-O {[%emt 0:00:03] D00: 1 d4 d5: Unusual lines.} Qxc5 {[%emt 0:00:05]} 9. Nb5 {[%emt 0:00:01] Strongly threatening Nc7.} Na6 {[%emt 0:00:16] Inhibits Nc7.} 10. c3 {[%emt 0:00:04] White is slightly better.} Bd7 {[%emt 0:00:29] [#]} 11. a4 $146 {[%emt 0:00:31]} ({Predecessor:} 11. Nbd4 Nc7 12. h3 Nb5 13. Rc1 Rac8 14. Nb3 Qb6 15. a4 Nd6 16. a5 Qc7 17. Be5 {0-1 (30) Clarke,B (1695)-Li,E (1658) Windsor 2016}) 11... Ne4 {[%emt 0:00:44]} 12. Ne5 {[%emt 0:01:29]} Bc6 {[%emt 0:01:46]} (12... Rad8 $11 {remains equal.}) 13. Nd4 $16 {[%emt 0:02:00]} Nb8 {[%emt 0:00:25]} 14. a5 {[%emt 0:01:14] White is more active.} g5 $2 {[%emt 0:01:23][%mdl 8192]} (14... a6 $14) 15. Nd3 $18 {[%emt 0:00:07]} Qc4 {[%emt 0:00:54] [#]} 16. Bxb8 {[%emt 0:02:49]} (16. Ne1 $1 Qc5 (16... Ba4 17. Rxa4) 17. Nb3) 16... Raxb8 {[%emt 0:00:14]} 17. a6 {[%emt 0:00:01]} (17. f3 $142 Nf6 18. Nf5) 17... Nxc3 {[%emt 0:01:26][%mdl 8192]} 18. bxc3 {[%emt 0:00:03]} Qxc3 {[%emt 0:00:06]} 19. axb7 {[%emt 0:00:28]} Bxb7 {[%emt 0:00:52]} 20. Rxa7 {[%emt 0:00:02]} e5 {[%emt 0:00:40]} 21. Nf5 {[%emt 0:01:20]} e4 {[%emt 0:00:20]} 22. Nc1 {[%emt 0:00:02]} Be5 {[%emt 0:00:20]} 23. Qb3 {[%emt 0:00:16]} Qc7 {[%emt 0:00:26]} 24. g3 {[%emt 0:00:16]} f6 {[%emt 0:00:26]} (24... Kh8 {is a better defense.} 25. Rd1 Qc6) 25. Na2 {[%emt 0:00:33] White is clearly winning.} Rfd8 {[%emt 0:00:05]} (25... Qd7 $142 26. Bg4 Kh8) 26. Rc1 {[%emt 0:00:11]} Qd7 {[%emt 0:00:06]} 27. Bg4 {[%emt 0:00:01]} Bc6 {[%emt 0:00:04]} (27... Kh8 $142 28. Nh6 Qe7) 28. Rxd7 {Weighted Error Value: White=0.52/Black=1.01} 1-0

[Event "Portuguese Rapid-ch 2022"]
[Site "Viseu"]
[Date "2022.06.10"]
[Round "5.1"]
[White "Sousa, Andre Ventura"]
[Black "Fernandes, Antonio"]
[Result "0-1"]
[ECO "C84"]
[WhiteElo "2420"]
[BlackElo "2314"]
[Annotator "TA"]
[PlyCount "74"]
[EventDate "2022.06.09"]
[EventType "rapid"]
[EventCountry "POR"]
[SourceTitle "playchess.com"]
[Source "ChessBase"]
[SourceQuality "1"]
[TimeControl "600+5"]

{[%evp 16,74,9,0,28,20,39,31,43,35,39,39,43,41,35,31,36,25,64,54,54,62,60,37,60,36,58,40,41,21,56,36,27,27,21,16,24,0,0,-6,0,-67,-71,-49,-45,-61,-45,-36,-59,-82,-20,-212,-130,-151,-131,-312,-280,-312,-302,-1836,-1633]} 1. e4 e5 2. Nf3 Nc6 3. Bb5 a6 4. Ba4 Nf6 5. O-O Be7 6. d3 b5 7. Bb3 d6 8. a3 O-O 9. Nc3 Be6 {C77: Ruy Lopez: 3...a6 4 Ba4 Nf6, unusual lines.} 10. Nd5 Na5 11. Nxf6+ Bxf6 {White is slightly better.} 12. Bxe6 fxe6 13. b4 Nc6 {[#]} 14. Bd2 $146 ({Predecessor:} 14. c3 Kh8 15. Be3 Nb8 16. a4 Nd7 17. axb5 axb5 18. Qb3 Qe7 19. Ra5 Rab8 20. Ra7 {½-½ (57) Csonka,B (2496)-Kamsky,G (2662) Chess.com INT 2021}) 14... Qd7 15. c3 Ne7 16. a4 Rfb8 17. Qc2 c5 18. bxc5 dxc5 19. Rfd1 Nc6 20. Be3 Qd6 21. Qa2 b4 22. Rac1 {[%cal Oe3c5]} Rc8 23. Nd2 {[#] aiming for Nc4.} Na5 24. Nc4 Nxc4 25. Qxc4 Be7 (25... Rab8 {is interesting.} 26. cxb4 cxb4 27. Qxc8+ Rxc8 28. Rxc8+ Kf7) 26. g3 a5 27. Kh1 h6 28. f4 (28. h4 $11) 28... Kh8 29. fxe5 Qxe5 30. Bf4 Qf6 31. Rf1 Qg6 32. Qb5 Rd8 (32... Bf6 $17 33. Bd2 Bg5) 33. Rfd1 $2 (33. cxb4 $11 axb4 34. a5) 33... Bf6 34. cxb4 cxb4 35. Rc6 $2 (35. Kg2 $17) 35... Qg4 $19 {[#] ( -> ...Qf3+)} 36. Rf1 {Inhibits Qf3+.} Qe2 {[%cal Re2f1]} 37. d4 $2 (37. Rcc1 Bc3 38. Qc6) 37... Qxe4+ {Weighted Error Value: White=0.43/Black=0.16 (very precise)} 0-1

[Event "Portuguese Rapid-ch 2022"]
[Site "Viseu"]
[Date "2022.06.10"]
[Round "5.2"]
[White "Ferreira, Jorge Viterbo"]
[Black "Rego, Pedro Filipe"]
[Result "0-1"]
[ECO "A58"]
[WhiteElo "2512"]
[BlackElo "2251"]
[Annotator "TA"]
[PlyCount "154"]
[EventDate "2022.06.09"]
[EventType "rapid"]
[EventCountry "POR"]
[SourceTitle "playchess.com"]
[Source "ChessBase"]
[SourceQuality "1"]
[TimeControl "600+5"]

{[%evp 9,153,20,37,33,48,39,36,24,61,51,55,50,61,43,96,56,138,135,130,121,161,161,160,160,160,161,167,161,161,161,183,183,177,176,168,147,181,122,181,124,123,109,181,159,187,126,218,166,166,152,204,151,146,134,134,126,187,173,417,193,196,205,175,173,248,256,256,227,377,150,157,158,158,-411,-407,-410,-406,-390,-404,-411,-393,-411,-409,-404,-358,-403,-299,-318,-209,-565,-565,-565,-561,-547,-538,-523,-515,-506,0,-480,-488,-493,-466,-532,-399,-399,-374,-337,0,-309,-167,-167,-167,-247,-239,-29983,-29984,-29986,-29987,-29987,-29988,-29988,-29987,-29987,-29988,-29988,-29989,-29992,-29980,-29980,0,-29992,-29993,-29993,-29994,-29994,-29993,-29993,-29994,-29996,-29995,-29997,-29996,-29998,-29999,-29999]} 1. d4 Nf6 2. c4 {[%cal Bc2c4,Bc4b5,Bb5a6][%mdl 32]} c5 3. d5 b5 4. cxb5 a6 5. bxa6 g6 6. Nc3 {[%cal Oa6a7] A58: Benko/Volga Gambit: Lines with 5 bxa6.} Bg7 7. e4 O-O 8. Bc4 {[%cal Oa6a7] White is slightly better.} Qa5 9. a7 $1 (9. e5 $6 Ne4 10. Qd3 Bxe5 $11) 9... Rxa7 10. Bd2 {[#]} Ra8 $146 ({Predecessor:} 10... Ba6 11. b3 Bxc4 12. bxc4 Qb4 13. e5 Nh5 14. Nb5 Qxc4 15. Nxa7 Bxe5 16. Rc1 Qxa2 17. Nf3 Bb2 18. Rc2 Qb3 19. Qb1 {1-0 (19) Mishra,A (2370)-Belous,V (2521) Charlotte 2021}) 11. Nf3 d6 (11... Ba6 $1 $14 12. Be2 d6) 12. O-O Bg4 (12... Ba6 $1 $14 13. Bxa6 Nxa6) 13. h3 $36 {[%mdl 2048] White is in control.} Bxf3 14. Qxf3 Nbd7 15. Qe2 Rfb8 16. Nb5 Qd8 17. a4 $1 Nb6 18. b3 Ne8 19. Ra2 Nc7 20. Nxc7 Qxc7 21. Bb5 Nd7 22. a5 Bd4 23. g3 ({Better is} 23. a6 $18) 23... Ra7 (23... Qb7 $16 24. Bc4 Ne5) 24. Kg2 (24. a6 $18) 24... Qb7 25. Ba4 Qc8 (25... f5 $16) 26. Rc1 {[%cal Ob3b4]} Qd8 27. Be1 {A strong pair of Bishops.} (27. Rb1 $18) 27... Kg7 (27... Nf6 $16 28. Rd1 Rxa5) 28. Bb5 Rab7 29. Bc4 Ra7 (29... Ne5 $16 {was worth a try.} 30. a6 Ra7) 30. Ra4 Ne5 31. b4 cxb4 32. Rxb4 Rc7 (32... Rxb4 $16 {was called for.} 33. Bxb4 Qb8) 33. Rcb1 $18 Rbc8 (33... Rxb4 34. Rxb4 Bc5) 34. Bb3 (34. Ba6 $142 Bc3 35. Bxc3 Rxc3 36. Bxc8 Qxc8 37. R4b2) 34... Bc3 {[#]} 35. Bxc3 Rxc3 36. a6 Qa5 (36... Qc7 $142 37. Bd1 (37. Rb7 Qa5 $18) 37... Ra3) 37. Ra4 Qc5 38. Bd1 {And now Rb5 would win.} ({Resist} 38. a7 $6 Ra8 $16) 38... Nd3 (38... Ra8 {might work better.} 39. Rb5 Qc8) 39. Rb3 $2 (39. a7 $18 {is more deadly.} Ra8 40. Rb7) 39... Rxb3 $16 40. Bxb3 Qc3 {[#]} 41. Rc4 $2 Rxc4 $19 42. Bxc4 Qxc4 43. a7 {[#]} Nf4+ $1 {[%mdl 512]} 44. gxf4 Qxe2 45. a8=Q Qxe4+ {[%mdl 4096] Endgame KQ-KQ} 46. Kg3 Qd3+ 47. Kg2 Qd4 48. Kg3 h5 {[%cal Bh7h5,Bh5h4][%mdl 32]} 49. Qb7 $2 (49. h4 {was the crucial defense.}) 49... h4+ 50. Kf3 Qd3+ 51. Kg2 Qe4+ 52. Kg1 Qe1+ 53. Kg2 Qe4+ 54. Kg1 $1 Kf6 55. Qb2+ Kf5 56. Qg7 {[%cal Rg7f7]} f6 57. Qh7 Qe1+ 58. Kg2 Qe4+ (58... Kxf4 $2 59. Qxh4+ Ke5 60. f4+ Kxd5 61. Qxe1 $18) 59. Kg1 Qxf4 (59... Kxf4 $142 {( -> ...Kf3)} 60. Qxh4+ Ke5) 60. Qxe7 Qe5 61. Qd7+ (61. Qh7 {is a better defense.}) 61... Ke4 {White must now prevent ...Qg5+.} 62. Qf7 $2 (62. Qe6 $19) 62... Kf3 63. Qxg6 Qe1+ 64. Kh2 Qxf2+ 65. Kh1 Qf1+ 66. Kh2 Qe2+ 67. Kh1 Qe1+ 68. Kh2 Qe5+ 69. Kh1 Qe1+ 70. Kh2 $1 Qg3+ {Black mates.} 71. Qxg3+ hxg3+ {K3P-KPP} 72. Kg1 f5 {[%cal Bf6f5,Bf5f4,Bf4f3,Bf3f2][%mdl 32]} 73. Kf1 g2+ 74. Kg1 Kg3 75. h4 f4 76. h5 f3 {[%csl Gg3][%cal Rf3f2]} 77. h6 f2# {Weighted Error Value: White=0.40/Black=0.48} 0-1

[Event "Portuguese Rapid-ch 2022"]
[Site "Viseu"]
[Date "2022.06.10"]
[Round "5.3"]
[White "Veiga, Jose Francisco R P N"]
[Black "Ferreira, Luis Pedro"]
[Result "1-0"]
[ECO "C10"]
[WhiteElo "2377"]
[BlackElo "2183"]
[Annotator "TA"]
[PlyCount "61"]
[EventDate "2022.06.09"]
[EventType "rapid"]
[EventCountry "POR"]
[SourceTitle "playchess.com"]
[Source "ChessBase"]
[SourceQuality "1"]
[TimeControl "600+5"]

{[%evp 14,61,25,20,41,29,71,20,27,29,41,35,40,2,6,6,15,0,30,7,9,0,0,-3,1,-10,347,347,570,600,899,861,975,741,1245,1219,1139,780,976,969,964,942,1317,1286,1358,1341,1454,1488,1498,1095]} 1. e4 {[%emt 0:00:02]} e6 {[%emt 0:00:04]} 2. d4 {[%emt 0:00:01]} d5 {[%emt 0:00:01]} 3. Nd2 {[%emt 0:00:02]} dxe4 {[%emt 0:00:01]} 4. Nxe4 {[%emt 0:00:01]} Nd7 {[%emt 0:00:01]} 5. Nf3 {[%emt 0:00:02]} Ngf6 {[%emt 0:00:01]} 6. Bd3 {[%emt 0:00:03]} Be7 {[%emt 0:00:02] 6...c5 gains popularity.} 7. O-O {[%emt 0:00:03]} Nxe4 {[%emt 0:00:01]} 8. Bxe4 {[%emt 0:00:01]} Nf6 {C10: French with 3 Nc3: Unusual Black 3rd moves and 3...dxe4.} 9. Bd3 {[%emt 0:00:03]} b6 {[%emt 0:00:02]} 10. Qe2 {[%emt 0:00:06]} (10. Ne5 $16) 10... Bb7 {[%emt 0:00:02] The position is equal.} 11. Rd1 {[%emt 0:00:06] [#]} Qd5 $146 {[%emt 0:00:15]} ({Predecessor:} 11... O-O 12. c4 Bd6 13. Bd2 c5 14. dxc5 Bxc5 15. Bc3 Qc7 16. Ne5 Rad8 17. Rd2 g6 18. Rad1 Bd4 19. Bxd4 Rxd4 {½-½ (27) Schinke,A (2473)-Oprisor,R (2422) ICCF email 2012}) 12. Bb5+ {[%emt 0:00:26]} c6 {[%emt 0:00:08]} 13. Ba6 {[%emt 0:00:08]} (13. Bc4 $5 {[%cal Rc4d5]} Qe4 14. Qxe4 Nxe4 15. Bf4 $11) 13... Bxa6 {[%emt 0:00:35]} 14. Qxa6 {[%emt 0:00:01]} O-O {[%emt 0:00:04]} 15. c4 {[%emt 0:00:11]} Qh5 {[%emt 0:00:15]} 16. Bf4 {[%emt 0:00:13]} c5 {[%emt 0:00:53]} 17. Qb7 {[%emt 0:00:24]} Rfe8 {[%emt 0:00:20]} 18. d5 {[%emt 0:00:04] [#] Threatens to win with d6.} exd5 {[%emt 0:00:09]} 19. cxd5 {[%emt 0:00:01] aiming for d6.} Ne4 {[%emt 0:00:01][%mdl 8192] Black cannot hold the game after this.} (19... Qg4 $11 20. Bc7 (20. d6 Qxf4 21. dxe7 Qb8 $17) 20... Qc8) 20. d6 $18 {[%emt 0:00:21]} Bf6 {[%emt 0:00:46]} (20... Bxd6 21. Bxd6 Qf5) 21. d7 {[%emt 0:00:07] White is clearly winning.} Red8 {[%emt 0:00:45]} 22. Qxe4 {[%emt 0:00:06]} Qg4 {[%emt 0:00:02]} 23. h3 {[%emt 0:00:12]} Qh5 {[%emt 0:00:16]} 24. Bc7 {[%emt 0:00:07]} Rf8 {[%emt 0:00:02]} 25. d8=Q {[%emt 0:00:21]} Bxd8 {[%emt 0:00:04]} 26. Qxa8 {[%emt 0:00:03]} Bxc7 {[%emt 0:00:02]} 27. Qxa7 {[%emt 0:00:05]} Bf4 {[%emt 0:00:16]} 28. Qxb6 {[%emt 0:00:07]} g5 {[%emt 0:00:02]} 29. Qxc5 {[%emt 0:00:13]} Qg6 {[%emt 0:00:06]} 30. Ne5 {[%emt 0:00:36]} Qf5 {[%emt 0:00:03]} 31. Nd7 {[%emt 0:00:04] Weighted Error Value: White=0.23 (precise) /Black=0.79} 1-0

[Event "Portuguese Rapid-ch 2022"]
[Site "Viseu"]
[Date "2022.06.10"]
[Round "5.4"]
[White "Santos, Jose Guilherme B Lim"]
[Black "Avramescu, Paul-Mihai"]
[Result "1-0"]
[ECO "C13"]
[WhiteElo "2365"]
[BlackElo "2008"]
[Annotator "TA"]
[PlyCount "45"]
[EventDate "2022.06.09"]
[EventType "rapid"]
[EventCountry "POR"]
[SourceTitle "playchess.com"]
[Source "ChessBase"]
[SourceQuality "1"]
[TimeControl "600+5"]

{[%evp 13,45,-9,-15,-19,27,19,24,17,34,0,0,0,0,0,0,-20,93,-17,230,241,232,270,207,81,491,464,1291,603,2958,2767,29989,29989,29995,29996]} 1. d4 e6 2. e4 {[%cal Be2e4,Be4e5][%mdl 32]} d5 3. Nc3 Nf6 4. Bg5 Be7 5. e5 Nfd7 6. h4 h6 7. Be3 c5 8. Qg4 {C14: French: Classical System: 4 Bg5 Be7 main line.} g6 {The main line 8...g6 scores better than 8...Kf8.} (8... Kf8 $142) 9. dxc5 $11 Nxe5 10. Qg3 {White has an edge.} Nbc6 11. O-O-O (11. Bf4 $5 {[%cal Rf4e5]}) 11... h5 12. Be2 {Inhibits Ng4.} Qa5 {[#]} 13. Bb5 $146 {Strongly threatening Qxe5.} ({Predecessor:} 13. Kb1 Ng4 14. Bxg4 hxg4 15. Nge2 Bd7 16. Nc1 O-O-O 17. Rxd5 Rxh4 18. Rdd1 Rxh1 19. Rxh1 {½-½ (61) Paulik,V (2329)-Laurenc,P (2392) ICCF email 2012}) 13... O-O 14. Nh3 a6 (14... Bf6 $11 15. Bh6 Re8) 15. Be2 ({White must play} 15. Bxc6 $16 Nxc6 16. Bh6) 15... Bxc5 $2 (15... Bf6 $11 {and Black has nothing to worry.}) 16. Bxc5 $18 Qxc5 17. Bxh5 $1 Kg7 {[#]} 18. Be2 (18. Kb1 $1 $18 {has better winning chances.}) 18... Nc4 $2 {[%mdl 8192]} (18... d4 $16 {is tougher.}) 19. h5 {[%cal Bh4h5,Bh5g6][%mdl 32] aiming for Bxc4.} d4 {[#]} (19... Nd6 $142 20. hxg6 Nf5) 20. Ne4 (20. hxg6 $142 $1 fxg6 (20... dxc3 21. gxf7+) 21. Ne4) 20... Qb4 {[%csl Gc4][%cal Rb4b2]} 21. Bxc4 {[%cal Oh5g6] hxg6! would kill now.} Qxc4 22. hxg6 f5 23. Qc7+ {Weighted Error Value: White=0.53/Black=1.11} 1-0

[Event "Portuguese Rapid-ch 2022"]
[Site "Viseu"]
[Date "2022.06.10"]
[Round "5.5"]
[White "Bartolo, Filipe Diogo Correia"]
[Black "Padeiro, Jose"]
[Result "1-0"]
[ECO "B12"]
[WhiteElo "1811"]
[BlackElo "2207"]
[Annotator "TA"]
[PlyCount "77"]
[EventDate "2022.06.09"]
[EventType "rapid"]
[EventCountry "POR"]
[SourceTitle "playchess.com"]
[Source "ChessBase"]
[SourceQuality "1"]
[TimeControl "600+5"]

{[%evp 9,77,-4,4,-15,0,-37,-35,-31,0,0,0,0,13,6,26,-9,0,-5,1,-13,16,-56,-18,-37,-46,-80,-74,-85,-85,-79,-82,-86,-81,-122,-114,-122,-118,-264,-262,-228,-202,-271,-89,-89,-89,-88,-58,-59,-37,-87,-83,-83,-17,-17,0,0,0,0,0,0,0,0,0,0,0,0,0,0,0,0]} 1. e4 c6 2. d4 d5 3. Qd3 dxe4 4. Qxe4 Nf6 5. Qd3 g6 6. Nf3 {[#] B12: Caro-Kann: Advance Variation.} Bg7 $146 ({Predecessor:} 6... Bf5 7. Qd2 Bg7 8. Nc3 O-O 9. Qd1 Re8 10. Be3 Nbd7 11. Qe2 Nb6 12. O-O-O Nbd5 {0-1 (28) Biecaite,V-Stasius,M (1164) Klaipeda 2018}) 7. Bf4 O-O 8. Nbd2 {Black is slightly better.} Qa5 9. c3 Bf5 10. Nc4 Qd8 11. Qd1 Nbd7 12. Bd3 Bxd3 13. Qxd3 b5 14. Nce5 Nxe5 (14... Nh5 $5 {[%cal Rh5f4]} 15. Qe3 Nxf4 16. Qxf4 Nxe5 17. dxe5 Qd5 $11) 15. Nxe5 (15. Bxe5 $11 Qd7 16. O-O) 15... Qd5 (15... Nh5 $5 {[%cal Rh5f4]} 16. Qf3 Nxf4 17. Qxf4 Qd6 $11) 16. O-O Nh5 17. Qe3 c5 18. Rfd1 Nxf4 19. Qxf4 cxd4 20. cxd4 Rac8 21. Rac1 {[#]} Rxc1 $1 ({Much weaker is} 21... Qxa2 $6 22. Nc6 Bf6 23. b4 $11) 22. Rxc1 Qxa2 23. h3 (23. Qd2 $17) 23... Qxb2 $19 24. Rc7 Bxe5 25. Qxe5 {[%mdl 4096] Endgame KQR-KQR} e6 $2 {[#]} (25... a5 $19 {has better winning chances. aiming for ...a4.} 26. Qc5 a4) 26. Rxa7 $17 b4 {[%cal Bb5b4,Bb4b3][%mdl 32] And now ...b3 would win.} 27. Rb7 Qc3 28. Kh2 h5 29. Qd6 (29. Qe4 $15) 29... b3 30. d5 exd5 (30... Qd3 $17) 31. Qxd5 $11 {The position is equal.} b2 32. Qb3 {Inhibits Qc2.} Qe5+ 33. g3 h4 34. Qxb2 hxg3+ 35. fxg3 Qe1 36. Rb8 Rxb8 37. Qxb8+ Kh7 38. Qb2 Qe4 39. Qd2 {[%mdl 32768] Black had all chances to win.  Weighted Error Value: White=0.21 (precise) /Black=0.15 (very precise) . Loss on time!?} 1-0